[Event "Late-Titled-Tuesday-Blitz-July-09-2024"]
[Site "Chess.com"]
[Date "2024.07.09"]
[Round "5"]
[White "AmbartsumianTyhran2012"]
[Black "mind1mover"]
[Result "1-0"]
[WhiteElo "2597"]
[BlackElo "2807"]
[TimeControl "180+1"]
[EndTime "14:53:32 PDT"]
[Termination "AmbartsumianTyhran2012 won by resignation"]

1. e4 {[%clk 0:03:00.9]} 1... e5 {[%clk 0:02:58.3]} 2. Nf3 {[%clk 0:03:00.2]}
2... Nc6 {[%clk 0:02:58.6]} 3. d4 {[%clk 0:03:00.5]} 3... exd4 {[%clk
0:02:54.9]} 4. Nxd4 {[%clk 0:03:01.3]} 4... Bb4+ {[%clk 0:02:55]} 5. c3 {[%clk
0:03:00.7]} 5... Bc5 {[%clk 0:02:55.6]} 6. Be3 {[%clk 0:03:00.6]} 6... Bb6
{[%clk 0:02:52.7]} 7. Nf5 {[%clk 0:03:00.4]} 7... g6 {[%clk 0:02:45.3]} 8. Bxb6
{[%clk 0:02:59.8]} 8... axb6 {[%clk 0:02:45.9]} 9. Ne3 {[%clk 0:02:59.4]} 9...
Nf6 {[%clk 0:02:45.3]} 10. f3 {[%clk 0:02:57.7]} 10... O-O {[%clk 0:02:42.1]}
11. c4 {[%clk 0:02:56.6]} 11... d6 {[%clk 0:02:29]} 12. Nc3 {[%clk 0:02:56]}
12... Be6 {[%clk 0:02:23.3]} 13. Qd2 {[%clk 0:02:48.7]} 13... Ne5 {[%clk
0:01:48.4]} 14. Be2 {[%clk 0:02:42.8]} 14... Qe7 {[%clk 0:01:29.6]} 15. O-O
{[%clk 0:02:35.8]} 15... Ned7 {[%clk 0:01:28.9]} 16. b3 {[%clk 0:02:25.1]} 16...
Rad8 {[%clk 0:01:08]} 17. Rfd1 {[%clk 0:02:23.6]} 17... Rfe8 {[%clk 0:01:02.4]}
18. Bf1 {[%clk 0:02:22.5]} 18... Nf8 {[%clk 0:01:01.8]} 19. Ncd5 {[%clk
0:02:11.4]} 19... Bxd5 {[%clk 0:00:59.7]} 20. cxd5 {[%clk 0:02:11.6]} 20... h5
{[%clk 0:00:57]} 21. Rac1 {[%clk 0:02:01.3]} 21... h4 {[%clk 0:00:56.2]} 22. Bb5
{[%clk 0:01:57.4]} 22... N6d7 {[%clk 0:00:30.4]} 23. Rxc7 {[%clk 0:01:43.6]}
23... h3 {[%clk 0:00:30.7]} 24. Ng4 {[%clk 0:01:39]} 24... Rc8 {[%clk
0:00:21.5]} 25. Rxd7 {[%clk 0:01:33.8]} 25... Nxd7 {[%clk 0:00:20.4]} 26. Bxd7
{[%clk 0:01:33.8]} 26... Kg7 {[%clk 0:00:20.7]} 27. Bxc8 {[%clk 0:01:32.8]}
27... Rxc8 {[%clk 0:00:21]} 28. Qd4+ {[%clk 0:01:23.5]} 28... f6 {[%clk
0:00:21.1]} 29. gxh3 {[%clk 0:01:24]} 29... Rc5 {[%clk 0:00:20.7]} 30. Kg2
{[%clk 0:01:21.9]} 30... Rc2+ {[%clk 0:00:20.5]} 31. Rd2 {[%clk 0:01:22.2]}
31... Rc1 {[%clk 0:00:21.1]} 32. Qb2 {[%clk 0:01:21.1]} 32... Rc5 {[%clk
0:00:20.7]} 33. Rc2 {[%clk 0:01:21.1]} 33... Kf7 {[%clk 0:00:21.4]} 34. Rxc5
{[%clk 0:01:21]} 34... bxc5 {[%clk 0:00:22.3]} 35. Qxf6+ {[%clk 0:01:15]} 35...
Qxf6 {[%clk 0:00:22.5]} 36. Nxf6 {[%clk 0:01:15.3]} 36... c4 {[%clk 0:00:22.7]}
37. bxc4 {[%clk 0:01:11.5]} 37... Kxf6 {[%clk 0:00:22.6]} 38. f4 {[%clk
0:01:11.8]} 1-0

[Event "Late-Titled-Tuesday-Blitz-July-09-2024"]
[Site "Chess.com"]
[Date "2024.07.09"]
[Round "5"]
[White "GilbertoHernandezAmura"]
[Black "FM_Kappeler"]
[Result "1-0"]
[WhiteElo "2516"]
[BlackElo "2315"]
[TimeControl "180+1"]
[EndTime "14:53:32 PDT"]
[Termination "GilbertoHernandezAmura won by checkmate"]

1. e4 {[%clk 0:03:00.9]} 1... c5 {[%clk 0:02:57.1]} 2. Nf3 {[%clk 0:03:00.5]}
2... e6 {[%clk 0:02:57.3]} 3. b3 {[%clk 0:03:00.2]} 3... a6 {[%clk 0:02:56.2]}
4. Bb2 {[%clk 0:02:56.4]} 4... Nc6 {[%clk 0:02:56.1]} 5. e5 {[%clk 0:02:36.3]}
5... Qc7 {[%clk 0:02:55.5]} 6. a4 {[%clk 0:02:30.9]} 6... Nge7 {[%clk
0:02:54.9]} 7. Na3 {[%clk 0:02:31]} 7... Nf5 {[%clk 0:02:48.9]} 8. Nc4 {[%clk
0:02:27.9]} 8... b6 {[%clk 0:02:42.1]} 9. Bd3 {[%clk 0:02:27.4]} 9... Bb7 {[%clk
0:02:27]} 10. Bxf5 {[%clk 0:02:24.2]} 10... exf5 {[%clk 0:02:27.2]} 11. O-O
{[%clk 0:02:22.7]} 11... Be7 {[%clk 0:02:26.3]} 12. Nd6+ {[%clk 0:02:18.7]}
12... Kf8 {[%clk 0:02:16.6]} 13. Nxf5 {[%clk 0:02:17]} 13... Re8 {[%clk
0:01:59.7]} 14. Re1 {[%clk 0:02:11.9]} 14... h5 {[%clk 0:01:51.1]} 15. h4 {[%clk
0:01:59.9]} 15... Nd8 {[%clk 0:01:42]} 16. e6 {[%clk 0:01:55.6]} 16... Nxe6
{[%clk 0:01:41.8]} 17. Rxe6 {[%clk 0:01:52.7]} 17... fxe6 {[%clk 0:01:34.5]} 18.
Bxg7+ {[%clk 0:01:51.6]} 18... Kf7 {[%clk 0:01:24.5]} 19. Ne5+ {[%clk
0:01:46.3]} 19... Kg8 {[%clk 0:01:19.2]} 20. Bxh8 {[%clk 0:01:46.2]} 20... exf5
{[%clk 0:01:11.7]} 21. Qxh5 {[%clk 0:01:46.2]} 21... Rf8 {[%clk 0:00:58.2]} 22.
Ng6 {[%clk 0:01:35.5]} 22... Bf6 {[%clk 0:00:47.5]} 23. Nxf8 {[%clk 0:01:05.2]}
23... Bxa1 {[%clk 0:00:42.6]} 24. Bxa1 {[%clk 0:00:48.7]} 24... Kxf8 {[%clk
0:00:41.1]} 25. Qxf5+ {[%clk 0:00:41.8]} 25... Ke8 {[%clk 0:00:40.8]} 26. Qg6+
{[%clk 0:00:40.2]} 26... Kf8 {[%clk 0:00:34.3]} 27. Bg7+ {[%clk 0:00:39.9]}
27... Ke7 {[%clk 0:00:31]} 28. Qf6+ {[%clk 0:00:40.2]} 28... Ke8 {[%clk
0:00:29.2]} 29. Qf8# {[%clk 0:00:41.1]} 1-0

[Event "Late-Titled-Tuesday-Blitz-July-09-2024"]
[Site "Chess.com"]
[Date "2024.07.09"]
[Round "5"]
[White "ChessLover0108"]
[Black "ValeriyGrinev"]
[Result "1-0"]
[WhiteElo "2932"]
[BlackElo "2678"]
[TimeControl "180+1"]
[EndTime "14:53:36 PDT"]
[Termination "ChessLover0108 won by resignation"]

1. Nf3 {[%clk 0:03:00.9]} 1... d5 {[%clk 0:02:59.9]} 2. d4 {[%clk 0:02:56.2]}
2... Nf6 {[%clk 0:02:59.8]} 3. e3 {[%clk 0:02:56.6]} 3... e6 {[%clk 0:02:59.5]}
4. Bd3 {[%clk 0:02:55.7]} 4... Be7 {[%clk 0:02:59.1]} 5. O-O {[%clk 0:02:55.5]}
5... O-O {[%clk 0:02:59.2]} 6. b3 {[%clk 0:02:55.9]} 6... b6 {[%clk 0:02:59.4]}
7. Bb2 {[%clk 0:02:56.3]} 7... Bb7 {[%clk 0:02:59.4]} 8. Nbd2 {[%clk 0:02:54.1]}
8... Nbd7 {[%clk 0:02:58.9]} 9. c4 {[%clk 0:02:21.1]} 9... c5 {[%clk 0:02:58.6]}
10. Rc1 {[%clk 0:02:06.5]} 10... Rc8 {[%clk 0:02:58.7]} 11. Qe2 {[%clk
0:02:06.3]} 11... cxd4 {[%clk 0:02:57.7]} 12. exd4 {[%clk 0:02:03.4]} 12... Re8
{[%clk 0:02:57.9]} 13. Ne5 {[%clk 0:01:58.2]} 13... Bf8 {[%clk 0:02:57.1]} 14.
Rfd1 {[%clk 0:01:55.9]} 14... g6 {[%clk 0:02:56.3]} 15. Ndf3 {[%clk 0:01:51.9]}
15... Ne4 {[%clk 0:02:56.1]} 16. Qe3 {[%clk 0:01:40.3]} 16... Bg7 {[%clk
0:02:54.5]} 17. Nxd7 {[%clk 0:01:27.9]} 17... Qxd7 {[%clk 0:02:55.4]} 18. Ne5
{[%clk 0:01:27.3]} 18... Qe7 {[%clk 0:02:53]} 19. f3 {[%clk 0:01:11.6]} 19...
Nf6 {[%clk 0:02:52.9]} 20. c5 {[%clk 0:01:08.9]} 20... bxc5 {[%clk 0:02:52.1]}
21. dxc5 {[%clk 0:01:09.8]} 21... Nd7 {[%clk 0:02:52.1]} 22. b4 {[%clk
0:01:05.2]} 22... a5 {[%clk 0:02:51.9]} 23. a3 {[%clk 0:00:46.5]} 23... axb4
{[%clk 0:02:51.9]} 24. axb4 {[%clk 0:00:47.4]} 24... Nxe5 {[%clk 0:02:47.7]} 25.
Bxe5 {[%clk 0:00:48.3]} 25... Bxe5 {[%clk 0:02:45.2]} 26. Qxe5 {[%clk
0:00:49.2]} 26... f6 {[%clk 0:02:45.8]} 27. Qc3 {[%clk 0:00:41.6]} 27... e5
{[%clk 0:02:46.1]} 28. b5 {[%clk 0:00:41.9]} 28... d4 {[%clk 0:02:46.1]} 29.
Qb3+ {[%clk 0:00:41.7]} 29... Kg7 {[%clk 0:02:44.8]} 30. c6 {[%clk 0:00:42.2]}
30... Ba8 {[%clk 0:02:44.8]} 31. Qa4 {[%clk 0:00:32]} 31... f5 {[%clk 0:02:41]}
32. b6 {[%clk 0:00:30.5]} 32... e4 {[%clk 0:02:36.6]} 33. fxe4 {[%clk
0:00:30.7]} 33... fxe4 {[%clk 0:02:36.3]} 34. Qxd4+ {[%clk 0:00:27.6]} 34... Kh6
{[%clk 0:02:36.5]} 35. Bb5 {[%clk 0:00:23]} 35... e3 {[%clk 0:01:49.4]} 36. b7
{[%clk 0:00:20.9]} 36... Rb8 {[%clk 0:01:42.9]} 37. bxa8=Q {[%clk 0:00:17.4]}
37... Rxa8 {[%clk 0:01:43.8]} 38. c7 {[%clk 0:00:15]} 38... e2 {[%clk
0:01:41.9]} 39. Re1 {[%clk 0:00:10.7]} 39... Rf8 {[%clk 0:01:34.3]} 40. Rxe2
{[%clk 0:00:09.7]} 40... Qf7 {[%clk 0:01:34.9]} 41. Qe3+ {[%clk 0:00:09.8]}
41... Kg7 {[%clk 0:01:32.6]} 42. Qe7 {[%clk 0:00:10]} 1-0

[Event "Late-Titled-Tuesday-Blitz-July-09-2024"]
[Site "Chess.com"]
[Date "2024.07.09"]
[Round "5"]
[White "adrivillu"]
[Black "aexmi"]
[Result "0-1"]
[WhiteElo "2430"]
[BlackElo "2276"]
[TimeControl "180+1"]
[EndTime "14:53:37 PDT"]
[Termination "aexmi won by checkmate"]

1. e4 {[%clk 0:03:00.9]} 1... c5 {[%clk 0:02:57.6]} 2. Nf3 {[%clk 0:03:01]} 2...
g6 {[%clk 0:02:57.5]} 3. d4 {[%clk 0:03:00.7]} 3... cxd4 {[%clk 0:02:57.6]} 4.
Nxd4 {[%clk 0:02:57.3]} 4... Nc6 {[%clk 0:02:57.4]} 5. c4 {[%clk 0:02:55.3]}
5... Nf6 {[%clk 0:02:56]} 6. Nc3 {[%clk 0:02:53.9]} 6... d6 {[%clk 0:02:56.2]}
7. Be2 {[%clk 0:02:52.7]} 7... Nxd4 {[%clk 0:02:55]} 8. Qxd4 {[%clk 0:02:51.3]}
8... Bg7 {[%clk 0:02:55.9]} 9. Qd3 {[%clk 0:02:49.4]} 9... O-O {[%clk 0:02:54]}
10. Be3 {[%clk 0:02:46.3]} 10... Nd7 {[%clk 0:02:53.6]} 11. O-O {[%clk
0:02:43.9]} 11... Ne5 {[%clk 0:02:52]} 12. Qc2 {[%clk 0:02:42.1]} 12... Be6
{[%clk 0:02:52.3]} 13. b3 {[%clk 0:02:39.1]} 13... Ng4 {[%clk 0:02:45.3]} 14.
Bxg4 {[%clk 0:02:34.6]} 14... Bxg4 {[%clk 0:02:46.2]} 15. Rae1 {[%clk
0:02:26.7]} 15... a6 {[%clk 0:02:39.4]} 16. Nd5 {[%clk 0:02:22.6]} 16... Be6
{[%clk 0:02:33.3]} 17. f4 {[%clk 0:02:05.1]} 17... Bxd5 {[%clk 0:02:31.8]} 18.
exd5 {[%clk 0:02:00.9]} 18... Qc7 {[%clk 0:02:23]} 19. f5 {[%clk 0:01:47.7]}
19... b5 {[%clk 0:02:21.6]} 20. fxg6 {[%clk 0:01:38.5]} 20... hxg6 {[%clk
0:02:19.2]} 21. c5 {[%clk 0:01:37]} 21... dxc5 {[%clk 0:02:14.3]} 22. Bxc5
{[%clk 0:01:25.5]} 22... Bd4+ {[%clk 0:02:03.2]} 23. Kh1 {[%clk 0:01:20.7]}
23... Qxc5 {[%clk 0:01:58.4]} 24. Qe4 {[%clk 0:01:19]} 24... Bf6 {[%clk
0:01:54.9]} 25. Rf3 {[%clk 0:01:11.9]} 25... Rad8 {[%clk 0:01:45.9]} 26. Rd3
{[%clk 0:01:10.7]} 26... Rd6 {[%clk 0:01:36.2]} 27. h4 {[%clk 0:01:09.1]} 27...
Rfd8 {[%clk 0:01:32.8]} 28. Red1 {[%clk 0:01:02.6]} 28... Kg7 {[%clk 0:01:04.3]}
29. g4 {[%clk 0:00:51.2]} 29... Bxh4 {[%clk 0:00:54.8]} 30. Kg2 {[%clk
0:00:50.2]} 30... Qf2+ {[%clk 0:00:50.8]} 31. Kh3 {[%clk 0:00:50.1]} 31... Rh8
{[%clk 0:00:42.1]} 32. g5 {[%clk 0:00:43.3]} 32... Bg3+ {[%clk 0:00:34.6]} 33.
Kg4 {[%clk 0:00:39.2]} 33... Rh4# {[%clk 0:00:34.2]} 0-1

[Event "Late-Titled-Tuesday-Blitz-July-09-2024"]
[Site "Chess.com"]
[Date "2024.07.09"]
[Round "5"]
[White "Boorchess"]
[Black "PawnEatingZombie"]
[Result "1-0"]
[WhiteElo "2526"]
[BlackElo "2271"]
[TimeControl "180+1"]
[EndTime "14:53:46 PDT"]
[Termination "Boorchess won by resignation"]

1. d4 {[%clk 0:03:00.9]} 1... e6 {[%clk 0:02:57.9]} 2. Nf3 {[%clk 0:03:00.1]}
2... c5 {[%clk 0:02:51.2]} 3. g3 {[%clk 0:02:57.8]} 3... cxd4 {[%clk 0:02:46.8]}
4. Nxd4 {[%clk 0:02:57.2]} 4... d5 {[%clk 0:02:47.5]} 5. Bg2 {[%clk 0:02:57.1]}
5... Nf6 {[%clk 0:02:46.5]} 6. O-O {[%clk 0:02:56.9]} 6... e5 {[%clk 0:02:46.5]}
7. Nf3 {[%clk 0:02:56.6]} 7... Nc6 {[%clk 0:02:45]} 8. c4 {[%clk 0:02:56.1]}
8... d4 {[%clk 0:02:30.8]} 9. e3 {[%clk 0:02:55.8]} 9... dxe3 {[%clk 0:02:11]}
10. Qxd8+ {[%clk 0:02:53.3]} 10... Kxd8 {[%clk 0:02:11.5]} 11. Bxe3 {[%clk
0:02:53]} 11... h6 {[%clk 0:02:07]} 12. Nc3 {[%clk 0:02:52.3]} 12... Be6 {[%clk
0:02:05.6]} 13. Rfd1+ {[%clk 0:02:49.2]} 13... Kc8 {[%clk 0:02:04.9]} 14. Nd5
{[%clk 0:02:39.9]} 14... Nd7 {[%clk 0:01:47.1]} 15. a3 {[%clk 0:02:24.6]} 15...
Bc5 {[%clk 0:01:41.9]} 16. Bxc5 {[%clk 0:02:19.9]} 16... Nxc5 {[%clk 0:01:41.8]}
17. b4 {[%clk 0:02:19.7]} 17... Na4 {[%clk 0:01:37.7]} 18. b5 {[%clk 0:02:17.5]}
18... Na5 {[%clk 0:01:24.4]} 19. Nxe5 {[%clk 0:02:17]} 19... a6 {[%clk
0:01:08.9]} 20. b6 {[%clk 0:02:08.8]} 20... Bxd5 {[%clk 0:00:47.3]} 21. Bxd5
{[%clk 0:02:05.4]} 21... Nxb6 {[%clk 0:00:46.3]} 22. Nxf7 {[%clk 0:01:57.5]}
22... Rf8 {[%clk 0:00:35.4]} 23. Be6+ {[%clk 0:01:40.6]} 23... Kc7 {[%clk
0:00:34.6]} 24. c5 {[%clk 0:01:36.3]} 24... Na4 {[%clk 0:00:23.2]} 25. Rd7+
{[%clk 0:01:24.3]} 25... Kc6 {[%clk 0:00:23.3]} 26. Rc1 {[%clk 0:01:16.7]} 26...
Rae8 {[%clk 0:00:13.9]} 27. Rd6+ {[%clk 0:01:02.2]} 27... Kb5 {[%clk 0:00:12.5]}
28. Ne5 {[%clk 0:00:57.5]} 28... Rf6 {[%clk 0:00:04.4]} 29. Bd7+ {[%clk
0:00:54.5]} 29... Nc6 {[%clk 0:00:01.5]} 30. Nxc6 {[%clk 0:00:53.2]} 30... bxc6
{[%clk 0:00:01]} 31. Bxe8 {[%clk 0:00:52.6]} 1-0

[Event "Late-Titled-Tuesday-Blitz-July-09-2024"]
[Site "Chess.com"]
[Date "2024.07.09"]
[Round "5"]
[White "rionelG"]
[Black "Snowball-03"]
[Result "0-1"]
[WhiteElo "2420"]
[BlackElo "2619"]
[TimeControl "180+1"]
[EndTime "14:53:50 PDT"]
[Termination "Snowball-03 won on time"]

1. e4 {[%clk 0:03:00.9]} 1... c5 {[%clk 0:02:59.7]} 2. Nf3 {[%clk 0:02:56.5]}
2... Nc6 {[%clk 0:03:00.1]} 3. d4 {[%clk 0:02:56.4]} 3... cxd4 {[%clk 0:03:01]}
4. Nxd4 {[%clk 0:02:56.2]} 4... Nf6 {[%clk 0:03:01.6]} 5. Nc3 {[%clk 0:02:56.3]}
5... e6 {[%clk 0:03:02.1]} 6. g3 {[%clk 0:02:43.4]} 6... d6 {[%clk 0:02:33.5]}
7. Bg2 {[%clk 0:02:36.2]} 7... Bd7 {[%clk 0:02:32.8]} 8. O-O {[%clk 0:02:34.6]}
8... a6 {[%clk 0:02:29.9]} 9. a4 {[%clk 0:02:24.3]} 9... Be7 {[%clk 0:02:28.3]}
10. Be3 {[%clk 0:02:20.1]} 10... O-O {[%clk 0:02:26.2]} 11. Nxc6 {[%clk
0:02:08.5]} 11... Bxc6 {[%clk 0:02:27.1]} 12. a5 {[%clk 0:02:07.6]} 12... Rc8
{[%clk 0:02:15.7]} 13. Bb6 {[%clk 0:02:06.4]} 13... Qe8 {[%clk 0:02:14.2]} 14.
Re1 {[%clk 0:01:54]} 14... Nd7 {[%clk 0:02:13.1]} 15. Be3 {[%clk 0:01:34]} 15...
Qd8 {[%clk 0:02:09.7]} 16. Qd2 {[%clk 0:01:17.7]} 16... Qc7 {[%clk 0:02:02.6]}
17. b4 {[%clk 0:00:47.5]} 17... Ne5 {[%clk 0:01:59.4]} 18. Bd4 {[%clk
0:00:35.9]} 18... Be8 {[%clk 0:01:48.3]} 19. Rab1 {[%clk 0:00:22.8]} 19... Qc4
{[%clk 0:01:24.6]} 20. Rb3 {[%clk 0:00:16.8]} 20... Bf6 {[%clk 0:01:09.1]} 21.
Kh1 {[%clk 0:00:12.2]} 21... Qc7 {[%clk 0:01:01.2]} 22. h3 {[%clk 0:00:09.2]}
22... Bc6 {[%clk 0:00:51.2]} 23. Bb6 {[%clk 0:00:07.1]} 23... Qb8 {[%clk
0:00:51.1]} 24. Ne2 {[%clk 0:00:05.5]} 24... Ba4 {[%clk 0:00:44]} 25. Rb2 {[%clk
0:00:04.1]} 25... Nc4 {[%clk 0:00:43.4]} 0-1

[Event "Late-Titled-Tuesday-Blitz-July-09-2024"]
[Site "Chess.com"]
[Date "2024.07.09"]
[Round "5"]
[White "Zurability"]
[Black "Kombinator01"]
[Result "0-1"]
[WhiteElo "2648"]
[BlackElo "2466"]
[TimeControl "180+1"]
[EndTime "14:53:53 PDT"]
[Termination "Kombinator01 won on time"]

1. d4 {[%clk 0:03:00.9]} 1... d5 {[%clk 0:02:49.4]} 2. c4 {[%clk 0:03:00.8]}
2... c5 {[%clk 0:02:49.3]} 3. Nf3 {[%clk 0:02:48.5]} 3... Nf6 {[%clk 0:02:49]}
4. cxd5 {[%clk 0:02:44]} 4... cxd4 {[%clk 0:02:47.5]} 5. Nxd4 {[%clk 0:02:40.6]}
5... Qxd5 {[%clk 0:02:45.5]} 6. Nc3 {[%clk 0:02:40.2]} 6... Qa5 {[%clk
0:02:46.1]} 7. Nb3 {[%clk 0:02:33.8]} 7... Qc7 {[%clk 0:02:42.9]} 8. e4 {[%clk
0:02:28.4]} 8... a6 {[%clk 0:02:42.6]} 9. Be2 {[%clk 0:02:19]} 9... Nc6 {[%clk
0:02:42.7]} 10. O-O {[%clk 0:02:18.6]} 10... h5 {[%clk 0:02:37.7]} 11. Nd5
{[%clk 0:02:12.8]} 11... Nxd5 {[%clk 0:02:31.6]} 12. exd5 {[%clk 0:02:13.7]}
12... Ne5 {[%clk 0:02:31.4]} 13. Qd4 {[%clk 0:02:06.2]} 13... Ng6 {[%clk
0:02:21.9]} 14. Be3 {[%clk 0:01:57.5]} 14... Qe5 {[%clk 0:02:20.9]} 15. Rac1
{[%clk 0:01:45.6]} 15... Qxd4 {[%clk 0:02:19.8]} 16. Bxd4 {[%clk 0:01:45.8]}
16... Nf4 {[%clk 0:02:18.9]} 17. Bf3 {[%clk 0:01:39.6]} 17... Bg4 {[%clk
0:02:19.4]} 18. Bxg4 {[%clk 0:01:24.7]} 18... hxg4 {[%clk 0:02:20.3]} 19. Rc7
{[%clk 0:01:15.6]} 19... Ne2+ {[%clk 0:02:11.3]} 20. Kh1 {[%clk 0:01:15.5]}
20... Nxd4 {[%clk 0:02:12.2]} 21. Nxd4 {[%clk 0:01:15.2]} 21... Rd8 {[%clk
0:02:11.1]} 22. Rxb7 {[%clk 0:01:09.5]} 22... Rxd5 {[%clk 0:02:10.6]} 23. Ne2
{[%clk 0:00:46.8]} 23... f6 {[%clk 0:02:05.7]} 24. Nf4 {[%clk 0:00:41.3]} 24...
Rd2 {[%clk 0:01:51.3]} 25. Ng6 {[%clk 0:00:36.8]} 25... Rg8 {[%clk 0:01:51]} 26.
Re1 {[%clk 0:00:37]} 26... Kf7 {[%clk 0:01:51.5]} 27. Nxf8 {[%clk 0:00:31.4]}
27... Rxf8 {[%clk 0:01:47.7]} 28. Rexe7+ {[%clk 0:00:27.3]} 28... Kg6 {[%clk
0:01:48.2]} 29. Rxg7+ {[%clk 0:00:27.1]} 29... Kh6 {[%clk 0:01:45.8]} 30. Rgd7
{[%clk 0:00:24.4]} 30... Rxf2 {[%clk 0:01:40.6]} 31. Kg1 {[%clk 0:00:24.5]}
31... Rc2 {[%clk 0:01:36.1]} 32. h3 {[%clk 0:00:17.2]} 32... gxh3 {[%clk
0:01:32.5]} 33. Rh7+ {[%clk 0:00:17]} 33... Kg6 {[%clk 0:01:33]} 34. Rxh3 {[%clk
0:00:17.6]} 34... Rd8 {[%clk 0:01:31.3]} 35. Rg3+ {[%clk 0:00:13.8]} 35... Kf5
{[%clk 0:01:31.3]} 36. Rb6 {[%clk 0:00:12]} 36... Rd1+ {[%clk 0:01:29.8]} 37.
Kh2 {[%clk 0:00:11.8]} 37... Rdd2 {[%clk 0:01:30.4]} 38. Rxa6 {[%clk 0:00:06.1]}
38... Rxb2 {[%clk 0:01:29.8]} 39. a4 {[%clk 0:00:06.4]} 39... Ra2 {[%clk
0:01:25.2]} 40. a5 {[%clk 0:00:06.6]} 40... Ke5 {[%clk 0:01:22.6]} 41. Ra8
{[%clk 0:00:06]} 41... Rd7 {[%clk 0:01:13.9]} 0-1

[Event "Late-Titled-Tuesday-Blitz-July-09-2024"]
[Site "Chess.com"]
[Date "2024.07.09"]
[Round "5"]
[White "maurovargas01"]
[Black "Nemsko"]
[Result "0-1"]
[WhiteElo "1939"]
[BlackElo "2308"]
[TimeControl "180+1"]
[EndTime "14:53:53 PDT"]
[Termination "Nemsko won on time"]

1. e4 {[%clk 0:03:00.9]} 1... e5 {[%clk 0:02:59.1]} 2. Nf3 {[%clk 0:03:00.8]}
2... Nc6 {[%clk 0:02:58.4]} 3. d4 {[%clk 0:02:57.1]} 3... exd4 {[%clk 0:02:58]}
4. Bc4 {[%clk 0:02:57.4]} 4... Nf6 {[%clk 0:02:56.7]} 5. e5 {[%clk 0:02:57.4]}
5... d5 {[%clk 0:02:54.3]} 6. Bb5 {[%clk 0:02:57.5]} 6... Ne4 {[%clk 0:02:53.9]}
7. Nxd4 {[%clk 0:02:57.2]} 7... Bd7 {[%clk 0:02:53.4]} 8. Bxc6 {[%clk
0:02:57.4]} 8... bxc6 {[%clk 0:02:54.3]} 9. O-O {[%clk 0:02:57.1]} 9... Bc5
{[%clk 0:02:51.5]} 10. c3 {[%clk 0:02:56.7]} 10... O-O {[%clk 0:02:49.1]} 11. f3
{[%clk 0:02:54.6]} 11... Ng5 {[%clk 0:02:49]} 12. f4 {[%clk 0:02:54.3]} 12...
Ne4 {[%clk 0:02:48.9]} 13. Nd2 {[%clk 0:02:53.5]} 13... f5 {[%clk 0:02:32.6]}
14. exf6 {[%clk 0:02:45]} 14... Nxf6 {[%clk 0:02:28.8]} 15. a4 {[%clk
0:02:33.9]} 15... Re8 {[%clk 0:02:25]} 16. b4 {[%clk 0:02:33]} 16... Bd6 {[%clk
0:02:22]} 17. Qc2 {[%clk 0:02:06.6]} 17... c5 {[%clk 0:02:05.8]} 18. Nf5 {[%clk
0:02:02.4]} 18... Bf8 {[%clk 0:01:55.9]} 19. b5 {[%clk 0:01:05.5]} 19... Qc8
{[%clk 0:01:48]} 20. Ne3 {[%clk 0:00:59.3]} 20... c6 {[%clk 0:01:45]} 21. Nd1
{[%clk 0:00:54.6]} 21... cxb5 {[%clk 0:01:43.7]} 22. axb5 {[%clk 0:00:53.7]}
22... Bxb5 {[%clk 0:01:44.6]} 23. Qb3 {[%clk 0:00:18.4]} 23... Bxf1 {[%clk
0:01:38.4]} 24. Nxf1 {[%clk 0:00:17.8]} 24... Kh8 {[%clk 0:01:30.7]} 25. Nf2
{[%clk 0:00:17.4]} 25... Qc6 {[%clk 0:01:26.3]} 26. Ng3 {[%clk 0:00:16.6]} 26...
Re1+ {[%clk 0:01:23]} 27. Nf1 {[%clk 0:00:09.9]} 27... Ree8 {[%clk 0:01:13.9]}
28. Bb2 {[%clk 0:00:08.1]} 28... Reb8 {[%clk 0:01:13.5]} 29. Qc2 {[%clk
0:00:07.2]} 29... c4 {[%clk 0:01:04.7]} 30. Ne3 {[%clk 0:00:04.8]} 30... Bc5
{[%clk 0:01:03.8]} 31. Nf5 {[%clk 0:00:03.9]} 31... Ne4 {[%clk 0:00:58.4]} 0-1

[Event "Late-Titled-Tuesday-Blitz-July-09-2024"]
[Site "Chess.com"]
[Date "2024.07.09"]
[Round "5"]
[White "Byniolus"]
[Black "manitodeplomo"]
[Result "1-0"]
[WhiteElo "2812"]
[BlackElo "2621"]
[TimeControl "180+1"]
[EndTime "14:53:54 PDT"]
[Termination "Byniolus won by resignation"]

1. d4 {[%clk 0:03:00.9]} 1... d5 {[%clk 0:02:58.3]} 2. Nf3 {[%clk 0:03:00.4]}
2... c6 {[%clk 0:02:58.4]} 3. Bf4 {[%clk 0:03:00.2]} 3... Qb6 {[%clk 0:02:58.9]}
4. Qc1 {[%clk 0:03:00]} 4... Bg4 {[%clk 0:02:58.2]} 5. Nbd2 {[%clk 0:02:59.8]}
5... Nf6 {[%clk 0:02:56.5]} 6. h3 {[%clk 0:02:59.6]} 6... Bxf3 {[%clk
0:02:50.5]} 7. Nxf3 {[%clk 0:02:59.4]} 7... e6 {[%clk 0:02:51.3]} 8. e3 {[%clk
0:02:58.4]} 8... c5 {[%clk 0:02:51.2]} 9. Be2 {[%clk 0:02:56.8]} 9... Nc6 {[%clk
0:02:51]} 10. c3 {[%clk 0:02:55.8]} 10... Be7 {[%clk 0:02:49.4]} 11. O-O {[%clk
0:02:55.2]} 11... O-O {[%clk 0:02:49.7]} 12. Qc2 {[%clk 0:02:55.2]} 12... Rfc8
{[%clk 0:02:42.8]} 13. Qb3 {[%clk 0:02:54.9]} 13... c4 {[%clk 0:02:41.2]} 14.
Qc2 {[%clk 0:02:54.5]} 14... Qa5 {[%clk 0:02:40.4]} 15. a3 {[%clk 0:02:49.1]}
15... b5 {[%clk 0:02:40.2]} 16. Nd2 {[%clk 0:02:43.8]} 16... Qd8 {[%clk
0:02:34.6]} 17. e4 {[%clk 0:02:41.5]} 17... a5 {[%clk 0:02:34.8]} 18. Bf3 {[%clk
0:02:37.1]} 18... b4 {[%clk 0:02:31.1]} 19. Qa4 {[%clk 0:02:36.7]} 19... b3
{[%clk 0:02:11.4]} 20. exd5 {[%clk 0:02:30.4]} 20... exd5 {[%clk 0:02:07.9]} 21.
Rfe1 {[%clk 0:02:18.6]} 21... h6 {[%clk 0:02:02.3]} 22. Nxc4 {[%clk 0:01:49.9]}
22... Nxd4 {[%clk 0:01:56.7]} 23. cxd4 {[%clk 0:01:50.8]} 23... Rxc4 {[%clk
0:01:55.8]} 24. Qxb3 {[%clk 0:01:50.8]} 24... Rxd4 {[%clk 0:01:48.6]} 25. Be5
{[%clk 0:01:50.4]} 25... a4 {[%clk 0:01:46]} 26. Qb7 {[%clk 0:01:31.9]} 26...
Rc4 {[%clk 0:01:36.5]} 27. Bxf6 {[%clk 0:01:21]} 27... Bxf6 {[%clk 0:01:00.3]}
28. Bxd5 {[%clk 0:01:17.9]} 28... Ra7 {[%clk 0:01:00.4]} 29. Bxf7+ {[%clk
0:01:07.2]} 29... Kf8 {[%clk 0:00:51.2]} 30. Qxa7 {[%clk 0:00:59.9]} 30... Bd4
{[%clk 0:00:51.7]} 31. Qa6 {[%clk 0:00:35]} 31... Bxf2+ {[%clk 0:00:41.5]} 32.
Kxf2 {[%clk 0:00:31.4]} 32... Qd4+ {[%clk 0:00:40.4]} 33. Kf1 {[%clk 0:00:26.4]}
33... Qf6+ {[%clk 0:00:33.3]} 34. Qxf6 {[%clk 0:00:25.5]} 1-0